{"text_format":"3","workbook":"xlsx","n_sheets":1,"sheets":["расписание"],"not_rendered":{"defined_names":1},"read":"whole","date_system":"1900"}

{"sheet":"расписание","index":0,"n_rows":41,"n_cols":11,"rows_kept":41,"merged":[[0,0,1,10],[2,2,3,4],[2,6,3,9],[2,12,2,14],[2,15,2,16],[2,20,2,22],[5,0,9,0],[5,2,5,9],[12,0,16,0],[18,0,22,0],[24,0,28,0],[30,0,34,0],[36,0,39,0]]}
["Расписание уроков 1-4 классов  филиала муниципального  бюджетного общеобразовательного  учреждения  «Шушмабашская средняя общеобразовательная школа-\"Шекинская начальная общеобразовательная школа»  Арского муниципального района Республики Татарстан   на 2025-2026 учебный год"]
[]
[null,null," ",null,null," "," "]
[]
[null,"№",1,null,2,null,3,null,4]
["Понедельник",null,"Классные часы \"Разговоры о важном\""]
[null,1,"\n окружающий мир\n\n \nОбществознание и естествознание\n( окружающий мир)\n",2,"литературное чтение на родном (татарском) языке",6,"\n окружающий мир\n\n \nОбществознание и естествознание\n( окружающий мир)\n",2,"литературное чтение на родном (татарском) языке",6,1]
[null,2,"родной ( татарский) язык  ",7,"русский язык ",7,"родной ( татарский) язык  ",7,"русский язык ",7,5]
[null,3,"литературное чтение на родном (татарском) языке",6,"математика ",8,"литературное чтение на родном (татарском)языке",6,"математика",8,8]
[null,4,"литературное чтение ",3,"физическая культура",1,"литературное чтение ",3,"физическая культура",1,7]
[]
[" ",null,null,{"$f":"SUM(D7:D11)","v":18},null,{"$f":"SUM(F7:F11)","v":22},null,{"$f":"SUM(H7:H11)","v":18},null,{"$f":"SUM(J7:J11)","v":22},21]
["Вторник",1,"физическая культура",7,"литературное чтение",5,"физическая культура",7,"литературное чтение",5,5]
[null,2,"математика ",8,"\nокружающий мир\n\n \nОбществознание и естествознание\n( окружающий мир)\n",5,"математика ",8,"окружающий мир\n\n \nОбществознание и естествознание\n( окружающий мир)\n",5,8]
[null,3,"русский язык",7,"музыка",7,"русский язык ",7,"музыка",7,7]
[null,4,"музыка\\изобразительное искусство",3,"русский язык ",7,"иностранный  ( английский )язык",3,"русский язык ",7,7]
[null,5," ",null,"иностранный  ( английский )язык",7,"музыка",7,"иностранный  ( английский )язык",7,3]
[{"$nulls":3},{"$f":"SUM(D13:D17)","v":25},null,{"$f":"SUM(F13:F17)","v":31},null,{"$f":"SUM(H13:H17)","v":32},null,{"$f":"SUM(J13:J17)","v":31},30]
["Среда",1,"\nокружающий мир\n\n \nОбществознание и естествознание\n( окружающий мир)\n",6,"родной( татарский) язык  ",2,"\n(окружающий мир\n\n \nОбществознание и естествознание\n( окружающий мир)\n",6,"родной ( татарский) язык  ",2,6]
[null,2,"родной ( татарский) язык ",7,"русский язык ",7,"родной ( татарский) язык ",7,"русский язык ",7,7]
[null,3,"математика",8,"математика ",8,"математика ",8,"математика ",8,8]
[null,4,"русский язык",5,"физическая культура",1,"русский язык ",5,"физическая культура",1,2]
[null,5,null,1,"литературное чтение",5,"изобразительное искусство",1,"литературное чтение",5]
[{"$nulls":3},{"$f":"SUM(D19:D23)","v":27},null,{"$f":"SUM(F19:F23)","v":23},null,{"$f":"SUM(H19:H23)","v":27},null,{"$f":"SUM(J19:J23)","v":23},23]
["Четверг",1,"литературное чтение",5,"труд (технология)",7,"литературное чтение",7,"труд (технология)",7,5]
[null,2,"математика",8,"математика ",7,"математика",8,"математика",7,7]
[null,3,"русский язык",7,"иностранный( английский ) язык ",8,"русский язык ",7,"иностранный ( английский )язык ",8,8]
[null,4,"труд (технология)",5,"\nокружающий мир\n\n \nОбществознание и естествознание\n( окружающий мир)\n",7,"труд (технология)",5," окружающий мир\n\n \nОбществознание и естествознание\n( окружающий мир)\n",7]
[null,5,null,null,"изобразительное искусство",null,"иностранный( английский ) язык ",7,"изобразительное искусство",null,5]
[{"$nulls":3},{"$f":"SUM(D25:D29)","v":25},null,{"$f":"SUM(F25:F29)","v":29}," ",{"$f":"SUM(H25:H29)","v":34},null,{"$f":"SUM(J25:J29)","v":29},{"$f":"SUM(K25:K29)","v":25}]
["Пятница",1,"русский язык ",7,"родной ( татарский) язык ",6,"русский язык ",7,"родной ( татарский) язык ",6,5]
[null,2,"математика",8,"математика ",8,"математика ",8,"математика",3,1]
[null,3,"физическая культура",1,"русский язык ",7,"физическая культура",1,"русский язык ",7,6]
[null,4,"литературное чтение",5,"родной ( татарский) язык ",5,"литературное чтение",5,"родной( татарский) язык  ",5,7]
[null,5,null,null,"литературное чтение"," ","родной ( татарский) язык  "," ","литературное чтение"," ",7]
[{"$nulls":3},{"$f":"SUM(D31:D35)","v":21},null,{"$f":"SUM(F31:F35)","v":26},null,{"$f":"SUM(H31:H35)","v":21},null,{"$f":"SUM(J31:J35)","v":21},{"$f":"SUM(K31:K35)","v":26}]
["Суббота",1,null,null,"русский язык ",3,"русский язык ",7,"русский язык ",3,3]
[null,2,null,null,"литературное чтение",8,"математическая грамотность",8,"ОРКСЭ",8,1]
[null,3,{"$nulls":3},3,null,1,null,3,4]
[null,4,{"$nulls":3},{"$f":"SUM(F37:F39)","v":14}," ",{"$f":"SUM(H37:H39)","v":16},null,{"$f":"SUM(J37:J39)","v":14},5]
[" ",{"$nulls":9},{"$f":"SUM(K37:K40)","v":13}]